bitfinex-derivatives/quotes_ETHF0:USTF0_20250210
["timestamp","ask_amount","ask_price","bid_price","bid_amount"]
[1739210831777,0.5775,2683.9,2683.6,3.2078]
[1739210832482,0.00557117,2683.8,2683.6,3.2078]
[1739210833585,3.2078,2684.5,2683.7,0.74505]
[1739210833785,1.1398,2684.8,2683.9,3.2078]
[1739210833981,3.2078,2685.3,2684.2,3.2078]
[1739210834383,3.2078,2685.3,2684.2,3.8059]
[1739210834587,3.2078,2685.3,2684.6,3.2078]
[1739210834784,3.2078,2685.3,2684.9,3.2078]
[1739210835177,3.2078,2685.3,2684.7,1.1787]
[1739210835982,3.21339138,2685.3,2684.7,1.18429138]
[1739210837690,0.5606,2685.2,2684.7,1.18429138]
[1739210839889,3.2078,2685.0,2684.7,0.00559138]
[1739210840185,3.81595189,2684.9,2684.0,0.5739]
[1739210840393,3.2078,2684.7,2684.0,0.5739]
[1739210840781,3.2078,2684.1,2683.5,3.2078]
[1739210840985,0.5553,2684.0,2683.5,3.2078]
[1739210841188,4.86783298,2684.0,2683.5,3.2078]
[1739210841587,4.86783298,2684.0,2683.5,3.21339138]
[1739210846187,8.06480476,2684.0,2683.5,3.21339138]
[1739210846987,4.86783298,2684.0,2683.5,3.21339138]
[1739210847694,8.06480476,2684.0,2683.5,3.21339138]
[1739210848086,3.2078,2683.8,2683.5,0.00559138]
[1739210850895,4.29395571,2683.7,2683.5,0.00559138]
[1739210851495,0.5675,2683.6,2683.5,0.00559138]
[1739210852000,10.50813707,2683.6,2682.6,0.3030256]
[1739210852298,3.2078,2683.3,2682.5,3.2078]
[1739210852692,4.57362304,2683.2,2682.5,3.2078]
[1739210853198,4.57362304,2683.2,2682.6,0.00559138]
[1739210853787,3.2078,2682.8,2682.6,0.00559138]
[1739210854188,4.87120707,2682.7,2681.9,0.5733]
[1739210855298,0.00559138,2682.6,2682.0,0.00559138]
[1739210855795,4.28640301,2682.5,2682.0,0.00559138]
[1739210856002,0.00559138,2682.6,2682.0,0.00559138]
[1739210856697,0.00559138,2682.6,2682.1,3.2078]
[1739210857702,3.2078,2682.5,2682.1,3.2078]
[1739210857903,7.23215457,2682.5,2682.1,3.2078]
[1739210858095,4.02435457,2682.5,2682.1,3.2078]
[1739210859693,0.00559138,2682.6,2682.4,3.2078]
[1739210860001,0.00559138,2682.6,2682.5,1.132]
[1739210860200,0.00559138,2682.6,2682.5,41.932]
[1739210860396,0.6038,2683.6,2682.5,47.932]
[1739210860606,0.6038,2683.6,2682.9,3.2078]
[1739210860803,4.54665979,2683.6,2682.9,3.2078]
[1739210861403,3.2078,2683.8,2682.9,6.40477178]
[1739210861602,0.00559138,2683.5,2682.9,6.40477178]
[1739210862298,0.00559138,2683.5,2682.9,3.2078]
[1739210863397,3.2078,2683.2,2682.6,6.40477178]
[1739210863597,4.71904956,2683.4,2682.6,3.2078]
[1739210863802,4.19574212,2683.1,2682.5,1.132]
[1739210864002,3.2078,2683.2,2682.5,1.132]
[1739210864507,3.2078,2682.8,2682.5,0.5714]
[1739210864707,8.54064212,2683.1,2682.5,0.5714]
[1739210865007,5.09014,2683.1,2682.5,0.5714]
[1739210865209,4.06779011,2683.0,2682.5,0.5714]
[1739210869008,4.06779011,2683.0,2682.1,0.5654]
[1739210869209,3.2078,2682.8,2682.1,0.5654]
[1739210870599,3.2078,2682.8,2682.2,40.8]
[1739210871000,0.5664,2682.9,2682.2,40.8]
[1739210871206,3.7742,2682.9,2682.2,40.8]
[1739210871409,3.92639909,2682.8,2682.1,0.5654]
[1739210871903,3.92639909,2682.8,2682.1,41.3654]
[1739210872109,3.2078,2683.2,2682.3,6.40477178]
[1739210874202,3.89098288,2683.1,2682.3,6.40477178]
[1739210874398,0.5464,2683.0,2682.3,3.2078]
[1739210876010,3.89098288,2683.1,2682.3,6.40477178]
[1739210876306,0.6027,2683.3,2682.6,3.2078]
[1739210876513,0.6027,2683.3,2682.7,0.5929]
[1739210876810,0.6027,2683.3,2682.7,1.1669]
[1739210878798,3.88271627,2683.2,2682.7,1.1669]
[1739210879312,0.6027,2683.3,2682.7,1.1669]
[1739210881508,0.00559138,2683.5,2682.9,6.40477178]
[1739210884017,0.00559138,2683.5,2683.2,3.2078]
[1739210885213,0.00559138,2683.5,2683.2,6.40477178]
[1739210885419,3.2078,2684.2,2683.3,1.1652]
[1739210885718,3.2078,2684.2,2683.6,3.2078]
[1739210886123,1.1503,2684.5,2683.9,3.2078]
[1739210886514,3.2078,2685.1,2684.2,3.19697178]
[1739210886713,3.2078,2685.9,2685.0,6.40477178]
[1739210886914,3.2078,2685.9,2685.3,3.19697178]
[1739210887109,3.2078,2685.6,2685.1,1.726]
[1739210887313,3.2078,2685.3,2684.4,3.19697178]
[1739210887615,3.27147359,2685.2,2685.1,0.00559138]
[1739210887813,7.31291525,2685.2,2685.1,0.00559138]
[1739210889416,7.24924166,2685.2,2685.1,0.00559138]
[1739210891208,4.04144166,2685.2,2685.1,0.00559138]
[1739210892312,4.9547,2685.5,2685.1,0.00559138]
[1739210892723,4.27468729,2685.4,2685.1,0.00559138]
[1739210893720,0.00559138,2685.7,2685.1,3.21339138]
[1739210894413,0.00559138,2685.7,2685.1,0.00559138]
[1739210894819,4.25060759,2685.6,2685.1,0.00559138]
[1739210895530,4.25060759,2685.6,2685.1,3.21339138]
[1739210896716,0.00559138,2685.7,2685.1,3.21339138]
[1739210900030,0.00559138,2685.7,2685.3,3.19697178]
[1739210900323,0.00559138,2685.7,2685.4,0.5918]
[1739210903318,3.2078,2685.5,2685.1,0.00559138]
[1739210903723,3.886864,2685.4,2685.1,0.00559138]
[1739210903926,3.2078,2685.5,2685.1,0.00559138]
[1739210904129,0.5563,2685.6,2685.1,0.00559138]
[1739210904330,0.00559138,2685.7,2685.1,3.21339138]
[1739210906019,3.2078,2685.6,2685.1,3.21339138]
[1739210906826,3.2078,2685.6,2685.1,0.00559138]
[1739210909134,0.00559138,2685.7,2685.2,3.2078]
[1739210911332,0.00559138,2685.7,2685.3,40.8]
[1739210911532,0.00559138,2685.7,2685.4,0.5673]
[1739210913326,0.00559138,2685.7,2685.4,3.16383126]
[1739210913637,0.00559138,2685.7,2685.4,0.5673]
[1739210914029,0.00559138,2685.7,2685.1,0.00559138]
[1739210914233,0.00559138,2685.7,2685.1,0.57289138]
[1739210914423,0.00559138,2685.7,2685.2,3.2078]
[1739210919040,0.00559138,2685.7,2685.4,2.59653126]
[1739210920035,3.2078,2685.5,2685.4,2.59653126]
[1739210920241,3.2078,2685.5,2685.1,3.16942264]
[1739210920540,0.00559138,2685.7,2685.1,3.16942264]
[1739210921641,0.00559138,2685.7,2685.2,3.2078]
[1739210922043,0.00559138,2685.7,2685.1,3.16942264]
[1739210924749,0.00559138,2685.7,2685.3,3.2078]
[1739210928141,0.00559138,2685.7,2685.1,3.16942264]
[1739210928945,0.00559138,2685.7,2685.3,3.2078]
[1739210929951,0.00559138,2685.7,2685.1,3.16942264]
[1739210934663,0.00559138,2685.7,2685.1,0.57289138]
[1739210935463,3.95236,2685.5,2685.1,0.00559138]
[1739210935670,1.7105,2685.4,2685.1,0.00559138]
[1739210936070,5.67346215,2685.4,2685.1,0.00559138]
[1739210936471,3.2078,2685.2,2685.1,0.00559138]
[1739210938172,7.29899033,2685.2,2685.1,0.00559138]
[1739210939869,3.2078,2685.2,2685.1,0.00559138]
[1739210940374,0.5782,2685.4,2685.1,0.00559138]
[1739210940974,0.00559138,2685.7,2685.1,0.00559138]
[1739210941274,4.22874005,2685.6,2685.1,0.00559138]
[1739210942675,0.00559138,2685.7,2685.1,2.60212264]
[1739210942862,0.00559138,2685.7,2685.2,1.1807]
[1739210944879,0.00559138,2685.7,2685.4,2.59653126]
[1739210945372,0.00559138,2685.7,2685.3,3.2078]
[1739210948178,4.23501424,2685.6,2685.3,3.2078]
[1739210948578,0.00559138,2685.7,2685.3,3.2078]
[1739210952577,0.00559138,2685.7,2685.2,1.45181216]
[1739210953080,0.00559138,2685.7,2685.3,3.2078]
[1739210953382,0.00559138,2685.7,2685.4,2.59653126]
[1739210953776,0.00559138,2685.7,2685.4,3.16513126]
[1739210954872,0.00559138,2685.7,2685.2,1.1594]
[1739210955274,0.60659138,2685.7,2685.2,1.1594]
[1739210955475,4.26226466,2685.6,2685.2,1.1594]
[1739210955782,1.79769138,2685.7,2685.2,1.1594]
[1739210956579,0.60659138,2685.7,2685.2,1.1594]
[1739210956876,0.00559138,2685.7,2685.3,3.2078]
[1739210960890,0.00559138,2685.7,2685.3,3.7755]
[1739210961186,0.00559138,2685.7,2685.3,3.2078]
[1739210963280,0.00559138,2685.7,2685.2,1.1594]
[1739210963481,1.69659138,2685.7,2685.2,1.1594]
[1739210965382,0.00559138,2685.7,2685.2,1.1594]
[1739210966587,1.10349138,2685.7,2685.2,1.1594]
[1739210966801,1.66839138,2685.7,2685.2,1.1594]
[1739210969194,1.66839138,2685.7,2685.2,0.5874]
[1739210969491,3.94894872,2685.6,2685.2,0.5874]
[1739210974798,0.74462,2685.3,2685.1,0.00559138]
[1739210974994,3.2078,2685.2,2685.1,0.00559138]
[1739210975293,8.02299519,2685.2,2685.1,0.00559138]
[1739210975792,3.8004,2685.2,2685.1,0.00559138]
[1739210976002,7.94094333,2685.2,2685.1,0.00559138]
[1739210976191,4.73314333,2685.2,2685.1,0.00559138]
[1739210985517,4.14054333,2685.2,2685.1,0.00559138]
[1739210985719,1.12319138,2685.7,2685.1,2.60212264]
[1739210985916,3.2078,2685.4,2685.1,0.00559138]
[1739210986118,3.92583722,2685.4,2685.1,0.00559138]
[1739210986316,4.33099138,2685.7,2685.1,0.00559138]
[1739210986817,3.92583722,2685.6,2685.1,0.00559138]
[1739210991226,3.21339138,2685.7,2685.1,2.60212264]
[1739210991426,3.21339138,2685.7,2685.2,0.5543]
[1739210991626,3.97198308,2685.6,2685.2,0.5543]
[1739210993823,3.97198308,2685.6,2685.1,0.00559138]
[1739210994025,0.5638,2685.5,2685.1,0.00559138]
[1739210994221,0.5989,2685.4,2685.1,0.00559138]
[1739210994427,4.56571092,2685.4,2685.1,0.00559138]
[1739210994828,0.5888,2685.3,2685.1,0.00559138]
[1739210995230,4.11980971,2685.2,2685.1,0.00559138]
[1739210997129,4.18348144,2685.2,2684.7,3.2078]
[1739210997329,0.06367269,2685.1,2684.7,3.2078]
[1739210997718,4.15560938,2685.0,2684.7,3.2078]
[1739210998322,0.5888,2685.3,2684.7,3.2078]
[1739210998728,4.26992868,2685.0,2684.7,3.2078]
[1739210998927,4.26992868,2685.2,2684.7,3.2078]
[1739210999131,0.5888,2685.3,2684.7,3.2078]
[1739210999333,3.98383201,2685.2,2684.8,0.5494]
[1739211000732,3.98383201,2685.2,2684.7,3.2078]
[1739211004432,3.98383201,2685.2,2684.8,2.59653126]
[1739211004631,3.98383201,2685.2,2684.8,3.18243126]
[1739211005030,3.98383201,2685.2,2684.8,0.5859]
[1739211008930,3.98383201,2685.2,2684.7,3.2078]
[1739211010833,3.98383201,2685.2,2684.8,0.5644]
[1739211011833,3.98383201,2685.2,2684.8,3.16093126]
[1739211012130,3.98383201,2685.2,2684.8,3.71763126]
[1739211016641,3.98383201,2685.2,2685.1,2.59653126]
[1739211016937,3.21339138,2685.7,2685.1,2.59653126]
[1739211017140,3.21339138,2685.7,2685.4,2.59653126]
[1739211017332,3.21339138,2685.7,2685.5,0.5814]
[1739211028047,3.21339138,2685.7,2685.3,3.2078]
[1739211028346,3.21339138,2685.7,2685.3,3.7889]
[1739211028347,0.5575,2685.6,2685.3,3.7889]
[1739211030444,3.21339138,2685.7,2685.3,3.7889]
[1739211030644,3.21339138,2685.7,2685.4,2.59653126]
[1739211031040,3.90478684,2685.6,2685.3,3.7889]
[1739211031243,3.90478684,2685.6,2685.3,0.5811]
[1739211031442,3.9524,2685.4,2684.6,0.00559138]
[1739211031749,0.5971,2685.3,2684.8,0.5793]
[1739211031942,4.76431877,2685.3,2684.8,0.5793]
[1739211033650,3.2078,2685.1,2684.6,0.00559138]
[1739211033843,1.1197,2685.0,2684.6,0.00559138]
[1739211034045,5.41333784,2685.0,2684.6,0.00559138]
[1739211040460,0.06366906,2684.9,2684.6,0.00559138]
[1739211040842,4.48212662,2684.8,2684.6,0.00559138]
[1739211045060,4.48212662,2684.8,2684.6,0.56659138]
[1739211046461,4.48212662,2684.8,2684.6,0.00559138]
[1739211051166,7.68992662,2684.8,2684.6,0.00559138]
[1739211051365,0.0636821,2684.7,2684.6,0.00559138]
[1739211051568,2.7796821,2684.7,2683.9,3.2078]
[1739211051757,0.74492,2684.2,2683.6,2.59653126]
[1739211051962,4.40219881,2684.1,2683.3,2.59653126]
[1739211052159,0.06369881,2684.0,2683.3,2.59653126]
[1739211052672,4.01940344,2683.9,2683.4,0.00559138]
[1739211052866,3.95569974,2683.9,2683.4,0.00559138]
[1739211053075,0.00559138,2683.9,2683.4,0.00559138]
[1739211053375,4.19500554,2683.8,2683.4,0.00559138]
[1739211053873,7.40280554,2683.8,2683.4,0.00559138]
[1739211054474,4.19500554,2683.8,2683.4,0.00559138]
[1739211055273,4.19500554,2683.8,2683.4,3.21339138]
[1739211055476,4.19500554,2683.8,2683.4,3.77949138]
[1739211056876,3.2078,2683.7,2683.4,0.00559138]
[1739211057074,2.59653126,2683.5,2682.4,2.59653126]
[1739211057278,3.2078,2683.2,2682.8,0.6044]
[1739211057476,1.1025,2683.1,2682.8,0.6044]
[1739211057775,5.09889674,2683.1,2682.8,0.6044]
[1739211060171,0.5545,2683.0,2682.8,0.6044]
[1739211060374,7.24353126,2683.8,2682.8,0.6044]
[1739211060375,3.21339138,2683.9,2682.9,3.2078]
[1739211060570,3.21339138,2683.9,2683.4,3.2078]
[1739211060779,4.15334231,2683.7,2683.5,0.6044]
[1739211061078,3.21339138,2683.9,2683.5,0.6044]
[1739211061472,3.91484736,2683.6,2683.5,0.6044]
[1739211061678,3.91484736,2683.8,2683.5,0.6044]
[1739211061878,3.21339138,2683.9,2683.5,0.6044]
[1739211062081,3.91484736,2683.8,2683.5,0.6044]
[1739211063676,0.74511,2683.5,2682.7,2.60025886]
[1739211063867,1.7048,2683.4,2682.7,0.0037276]
[1739211064074,5.89843175,2683.4,2682.7,0.0037276]
[1739211065584,5.89843175,2683.4,2682.7,3.2115276]
[1739211067369,3.2078,2683.2,2682.7,3.2115276]
[1739211067576,5.89843175,2683.4,2682.7,3.2115276]
[1739211067774,4.25302904,2683.1,2682.7,3.2115276]
[1739211068375,3.2078,2683.2,2682.7,3.2115276]
[1739211068575,3.95311152,2683.0,2682.7,3.2115276]
[1739211068874,3.95311152,2683.1,2682.7,3.2115276]
[1739211069185,3.2078,2683.2,2682.7,3.2115276]
[1739211069481,4.01867089,2683.1,2682.7,3.2115276]
[1739211069685,4.76392089,2683.1,2682.7,0.0037276]
[1739211069978,3.34183126,2682.9,2682.7,0.0037276]
[1739211070179,1.1295,2682.8,2682.2,0.5707]
[1739211070374,5.62046445,2682.8,2682.2,0.5707]
[1739211074479,5.05296445,2682.8,2682.3,3.2078]
[1739211074881,3.91166445,2682.8,2682.3,3.2078]
[1739211075482,4.00741669,2683.0,2682.3,3.2078]
[1739211075682,1.757,2683.1,2682.3,3.2078]
[1739211075880,4.00741669,2683.0,2682.3,3.2078]
[1739211076184,2.59653126,2683.8,2682.9,3.2078]
[1739211076384,1.7453,2683.6,2683.2,3.2078]
[1739211076591,4.2694448,2683.4,2683.2,3.2078]
[1739211076788,0.6027,2683.6,2683.2,3.2078]
[1739211077181,4.2694448,2683.5,2683.2,3.2078]
[1739211079791,4.2694448,2683.5,2683.0,1.2033]
[1739211080292,0.5481,2683.4,2683.0,1.2033]
[1739211080481,1.1454,2683.4,2683.0,1.2033]
[1739211080688,4.31783718,2683.3,2683.0,1.2033]
[1739211082492,4.31783718,2683.3,2682.9,3.2078]
[1739211083085,4.31783718,2683.3,2682.8,3.2078]
[1739211083288,0.6027,2683.6,2683.1,3.2078]
[1739211083693,0.6027,2683.6,2683.2,0.5967]
[1739211083991,4.23969098,2683.4,2683.2,0.5967]
[1739211084288,4.23969098,2683.4,2683.1,3.2078]
[1739211084289,0.6027,2683.6,2683.1,3.2078]
[1739211084586,5.25548344,2683.3,2682.9,0.5729]
[1739211084992,1.1758,2683.3,2682.9,0.5729]
[1739211085192,4.07968344,2683.2,2682.9,0.5729]
[1739211085391,4.07968344,2683.2,2682.8,3.2078]
[1739211085593,5.80433126,2682.9,2681.8,3.7859]
[1739211085791,3.2078,2682.6,2681.8,3.7859]
[1739211085993,1.7709,2682.5,2681.8,3.7859]
[1739211086288,5.99742572,2682.5,2681.8,6.38243126]
[1739211088189,5.99742572,2682.5,2681.8,3.7859]
[1739211088496,5.99742572,2682.5,2681.8,3.2078]
[1739211088891,0.06355803,2682.4,2681.8,3.2078]
[1739211089188,7.25358926,2682.3,2681.8,3.2078]
[1739211092196,9.85012052,2682.3,2681.8,3.2078]
[1739211099001,7.25358926,2682.3,2681.5,3.2078]
[1739211100703,0.0635985,2682.2,2681.5,3.2078]
[1739211100898,9.85012052,2682.3,2681.5,3.2078]
[1739211101107,2.59653126,2682.0,2681.5,3.2078]
[1739211101306,1.7474,2681.9,2681.5,3.2078]
[1739211101606,5.72193149,2681.9,2681.5,3.2078]
[1739211102705,8.92973149,2681.9,2681.5,3.2078]
[1739211105201,5.80433126,2682.9,2681.8,5.80433126]
[1739211105407,0.5639,2682.6,2682.1,3.2078]
[1739211105599,4.27917545,2682.2,2682.1,3.2078]
[1739211105800,4.27917545,2682.4,2682.1,3.2078]
[1739211106001,0.5639,2682.6,2682.1,3.2078]
[1739211106210,1.0929,2682.8,2682.1,3.2078]
[1739211106211,4.27917545,2682.4,2682.1,3.2078]
[1739211106506,4.27917545,2682.4,2682.1,5.80433126]
[1739211106901,2.84,2683.4,2682.1,5.80433126]
[1739211107095,2.84,2683.4,2682.9,5.80433126]
[1739211107096,0.5459,2683.4,2682.9,5.80433126]
[1739211107405,3.93465507,2683.1,2682.9,5.80433126]
[1739211107601,3.93465507,2683.4,2683.0,1.1096]
[1739211107803,4.9148,2683.8,2683.2,3.2078]
[1739211107994,1.707,2683.8,2683.2,3.2078]
[1739211108200,4.01921723,2683.7,2683.5,3.2078]
[1739211109904,4.01921723,2683.7,2683.5,5.80433126]
[1739211110112,4.01921723,2683.7,2683.6,0.5539]
[1739211111906,0.00559138,2683.8,2683.6,0.5539]
[1739211115604,3.87864317,2683.7,2683.6,0.5539]
[1739211115812,3.87864317,2683.7,2683.5,3.2078]
[1739211118601,0.00559138,2683.8,2683.5,5.80433126]
[1739211119302,0.00559138,2683.8,2683.6,0.74508]
[1739211119508,0.00559138,2683.8,2683.5,5.80433126]
[1739211120311,0.00559138,2683.8,2683.5,12.54942126]
[1739211120618,0.5869,2684.7,2683.5,11.80433126]
[1739211120816,0.5869,2684.7,2684.4,3.2078]
[1739211121017,4.2900025,2684.6,2684.4,3.2078]
[1739211123321,0.00559138,2684.8,2684.4,3.2078]
[1739211123517,0.5992,2685.5,2684.7,3.2078]
[1739211123711,0.5992,2685.5,2684.6,2.59653126]
[1739211123712,0.5992,2685.5,2685.0,3.2078]
[1739211123921,4.56279934,2685.5,2684.8,0.6042]
[1739211124123,4.56279934,2685.5,2684.7,3.2078]
[1739211124124,2.59653126,2685.3,2684.7,3.2078]
[1739211124631,3.97537363,2685.2,2684.7,3.2078]
[1739211124834,3.97537363,2685.2,2684.7,3.21339138]
[1739211125226,7.74187363,2685.2,2684.7,3.21339138]
[1739211126834,2.59653126,2685.0,2684.7,0.00559138]
[1739211127236,4.50646447,2684.9,2684.7,0.00559138]
[1739211127639,0.5764,2684.9,2684.7,0.00559138]
[1739211127838,4.1863965,2684.8,2684.7,0.00559138]
[1739211129331,0.00559138,2685.3,2684.7,3.21339138]
[1739211129529,0.00559138,2685.3,2684.8,1.1316]
[1739211129734,3.90566186,2685.1,2684.8,1.1316]
[1739211129934,3.90566186,2685.2,2685.0,3.2078]
[1739211130141,0.00559138,2685.3,2685.0,3.2078]
[1739211131343,3.93622109,2685.2,2684.7,0.00559138]
[1739211131545,0.5951,2685.1,2684.7,0.00559138]
[1739211131941,3.89522975,2685.0,2684.7,0.00559138]
[1739211132145,0.00559138,2685.3,2684.9,3.2078]
[1739211132442,4.15713835,2685.2,2684.9,3.2078]
[1739211133336,4.15713835,2685.2,2684.7,0.00559138]
[1739211133937,0.5913,2685.1,2684.7,0.00559138]
[1739211134346,3.94391402,2685.0,2684.7,0.00559138]
[1739211134840,0.5906,2684.9,2684.7,0.00559138]
[1739211135249,3.99803782,2684.8,2684.7,0.00559138]
[1739211136039,3.99803782,2684.8,2684.2,3.2078]
[1739211136347,2.59653126,2684.7,2684.2,3.2078]
[1739211136847,3.96238775,2684.6,2684.2,3.2078]
[1739211137339,2.59653126,2684.4,2684.1,0.00559138]
[1739211137541,0.5887,2684.3,2684.1,0.00559138]
[1739211137741,5.4221041,2684.3,2684.1,0.00559138]
[1739211138743,8.6299041,2684.3,2684.1,0.00559138]
[1739211139151,1.29922,2684.2,2684.1,0.00559138]
[1739211139340,0.61799688,2684.2,2683.1,5.80433126]
[1739211139545,4.44033712,2684.2,2683.1,5.80433126]
[1739211139951,3.2078,2684.0,2683.1,5.80433126]
[1739211140452,3.88603712,2683.9,2683.1,5.80433126]
[1739211140642,0.00559138,2683.8,2683.3,0.00559138]
[1739211140837,0.00559138,2683.8,2683.4,3.2078]
[1739211141042,4.27676176,2683.7,2683.4,3.2078]
[1739211143153,4.27676176,2683.7,2683.3,0.00559138]
[1739211143742,4.84916176,2683.7,2683.3,0.00559138]
[1739211144051,1.1732,2683.6,2683.3,0.00559138]
[1739211144450,3.94372385,2683.5,2683.3,0.00559138]
[1739211146050,0.5724,2683.7,2683.3,0.00559138]
[1739211146249,4.11933308,2683.6,2683.3,0.00559138]
[1739211147047,4.11933308,2683.6,2683.4,3.2078]
[1739211147450,4.11933308,2683.6,2683.3,0.00559138]
[1739211152647,4.11933308,2683.6,2683.4,3.2078]
[1739211152853,4.11933308,2683.6,2683.5,0.5813]
[1739211153043,0.00559138,2683.8,2683.5,0.5813]
[1739211153248,0.00559138,2683.8,2683.7,5.80433126]
[1739211153657,7.50933126,2684.7,2683.7,11.80433126]
[1739211153658,1.705,2684.7,2683.7,11.80433126]
[1739211153847,2.59653126,2685.0,2684.1,3.2078]
[1739211154044,4.10401712,2684.6,2684.2,0.5848]
[1739211154251,4.10401712,2684.9,2684.2,0.5848]
[1739211154558,4.10401712,2684.8,2684.4,3.2078]
[1739211154757,0.00559138,2684.8,2684.4,3.2078]
[1739211155056,4.07117586,2684.7,2684.4,3.2078]
[1739211157158,4.07117586,2684.7,2684.0,3.2078]
[1739211157346,6.66770712,2684.7,2684.0,3.2078]
[1739211157855,0.5749,2684.6,2684.0,3.2078]
[1739211158350,3.94870516,2684.5,2684.0,3.2078]
[1739211161160,3.94870516,2684.5,2683.4,0.5689]
[1739211161161,2.59653126,2684.1,2683.3,4.91839138]
[1739211161355,0.5893,2684.0,2683.4,0.596]
[1739211161559,4.74046601,2684.0,2683.7,3.2078]
[1739211164061,4.15116601,2684.0,2683.7,3.2078]
[1739211164461,4.15116601,2684.0,2683.8,0.5443]
[1739211164859,4.17516271,2684.3,2683.8,0.5443]
[1739211165067,5.04529126,2684.4,2683.8,0.5443]
[1739211165359,3.2078,2684.1,2683.8,0.5443]
[1739211165574,3.2078,2684.1,2683.4,3.8038]
[1739211165575,3.2078,2684.1,2683.4,4.3481]
[1739211165760,3.2078,2683.8,2683.4,0.596]
[1739211166064,2.59653126,2684.1,2683.4,0.596]
[1739211166065,1.1076,2683.7,2683.4,0.596]
[1739211166752,4.28494968,2683.6,2683.4,0.596]
[1739211167756,4.28494968,2683.6,2683.3,0.00559138]
[1739211173861,3.2078,2683.4,2683.3,0.00559138]
[1739211174167,1.1076,2683.7,2683.3,0.00559138]
[1739211174368,4.1821452,2683.4,2683.3,0.00559138]
[1739211174766,1.1076,2683.7,2683.3,0.00559138]
[1739211175161,4.15391315,2683.4,2683.3,0.00559138]
[1739211175368,4.15391315,2683.6,2683.3,0.00559138]
[1739211175668,4.25582651,2683.4,2683.3,0.00559138]
[1739211176063,1.1076,2683.7,2683.3,0.00559138]
[1739211176365,4.25582651,2683.4,2683.3,0.00559138]
[1739211176866,1.1076,2683.7,2683.3,0.00559138]
[1739211177170,3.94140544,2683.4,2683.3,0.00559138]
[1739211177368,3.94140544,2683.5,2683.3,0.00559138]
[1739211177667,1.1076,2683.7,2683.3,0.00559138]
[1739211177870,4.14802174,2683.4,2683.3,0.00559138]
[1739211178167,4.14802174,2683.5,2683.3,0.00559138]
[1739211178362,1.1076,2683.7,2683.3,0.00559138]
[1739211178564,4.23635097,2683.4,2683.3,0.00559138]
[1739211178962,1.1076,2683.7,2683.3,0.00559138]
[1739211179461,4.23635097,2683.4,2683.3,0.00559138]
[1739211179669,4.23635097,2683.6,2683.3,0.00559138]
[1739211179870,6.4826828,2683.4,2683.3,0.00559138]
[1739211180063,2.59653126,2683.1,2682.2,4.3337]
[1739211180264,1.1191,2683.0,2682.2,4.3337]
[1739211180463,5.00525154,2683.0,2682.2,4.3337]
[1739211181261,0.00559138,2682.9,2682.3,0.00559138]
[1739211181771,4.17890338,2682.8,2682.3,0.00559138]
[1739211183068,0.5625,2682.7,2682.3,0.00559138]
[1739211183568,4.04226253,2682.6,2682.3,0.00559138]
[1739211183764,4.04226253,2682.6,2682.5,3.2078]
[1739211183964,0.00559138,2682.9,2682.5,5.80433126]
[1739211184164,0.00559138,2682.9,2682.6,1.1372]
[1739211184469,0.00559138,2682.9,2682.8,3.2078]
[1739211184769,0.00559138,2682.9,2682.8,5.80433126]
[1739211184972,0.5862,2683.7,2682.8,5.80433126]
[1739211185167,0.5862,2683.7,2683.3,3.2078]
[1739211185467,4.71774895,2683.7,2683.3,3.2078]
[1739211185667,4.71774895,2683.7,2683.6,3.2078]
[1739211185870,4.13154895,2683.7,2683.6,3.2078]
[1739211186169,0.00559138,2683.9,2683.6,3.2078]
[1739211186469,0.00559138,2683.9,2683.7,2.59653126]
[1739211188276,0.00559138,2683.9,2683.8,0.5843]
[1739211193368,3.99191859,2683.9,2683.6,3.2078]
[1739211197667,3.99191859,2683.9,2683.5,0.00559138]
[1739211198072,0.3731,2683.0,2681.9,3.2078]
[1739211198268,3.16963126,2682.9,2681.9,3.2078]
[1739211198470,3.27153216,2682.8,2681.9,3.2078]
[1739211198774,3.2078,2682.8,2682.2,3.2078]
[1739211198971,3.98108525,2682.7,2682.2,3.2078]
[1739211199170,3.98108525,2682.7,2682.5,3.2078]
[1739211199468,3.98667663,2682.8,2682.5,3.2078]
[1739211199671,2.59653126,2682.7,2682.5,3.2078]
[1739211199975,6.89428584,2682.7,2682.5,3.2078]
[1739211200175,6.89428584,2682.7,2682.2,3.21339138]
[1739211200869,6.89428584,2682.7,2682.2,0.00559138]
[1739211201375,2.59653126,2682.4,2682.2,0.00559138]
[1739211201767,4.01909841,2682.3,2682.2,0.00559138]
[1739211202168,4.01909841,2682.3,2682.2,3.21339138]
[1739211202376,2.59653126,2682.7,2682.2,3.21339138]
[1739211202770,4.31985674,2682.6,2682.2,3.21339138]
[1739211205273,4.31985674,2682.6,2682.2,0.00559138]
[1739211205474,7.52765674,2682.6,2682.2,0.00559138]
[1739211206165,4.31985674,2682.6,2682.2,0.00559138]
[1739211206371,4.31985674,2682.6,2682.2,3.21339138]
[1739211208779,0.00559138,2682.8,2682.5,3.2078]
[1739211209073,4.29497665,2682.7,2682.5,3.2078]
[1739211209475,0.00559138,2682.8,2682.5,3.2078]
[1739211218288,4.19844376,2682.7,2682.5,3.2078]
[1739211219084,4.19844376,2682.7,2682.4,0.5543]
[1739211220192,4.79424376,2682.7,2682.4,0.5543]
[1739211220388,0.74542,2682.4,2682.2,0.00559138]
[1739211220586,2.59653126,2682.4,2682.2,0.00559138]
[1739211220888,4.64366296,2682.3,2682.2,0.00559138]
[1739211221090,5.19476296,2682.3,2682.2,0.00559138]
[1739211221390,4.44932296,2682.3,2682.2,0.00559138]
[1739211221794,5.19476296,2682.3,2681.1,3.8098]
[1739211222086,5.19476296,2682.3,2681.2,0.5635]
[1739211222087,2.59653126,2681.9,2681.2,0.5635]
[1739211222285,0.5711,2681.8,2681.2,0.5635]
[1739211222484,4.69239156,2681.8,2681.2,0.5635]
[1739211222683,2.59653126,2681.6,2681.1,44.0078]
[1739211222883,2.59653126,2681.6,2681.1,3.2078]
[1739211223085,3.90290381,2681.5,2681.1,3.2078]
[1739211224791,2.59653126,2681.3,2680.8,3.2078]
[1739211225089,5.80433126,2681.3,2680.8,3.2078]
[1739211225293,4.28567072,2681.2,2680.8,3.2078]
[1739211225992,0.5881,2681.1,2680.8,3.2078]
[1739211226394,4.00746955,2681.0,2680.8,3.2078]
[1739211226586,4.00746955,2681.0,2680.6,0.5635]
[1739211226789,2.60212264,2681.3,2680.8,3.2078]
[1739211227290,4.09149751,2681.2,2680.8,3.2078]